Cogmind - Beta 16.1 @@@ ROGUE MODE // 2026.03.17 @ 18:10:31 Player: Wyvern Result: Destroyed by G-34 Mercenary with Small Laser Performance ------------- Evolutions (1) 500 Regions Visited (3) 600 Robots Destroyed (43) 215 Value Destroyed (1142) 1142 Prototype IDs (7) 140 Alien Tech Used (0) 0 Bonus (0) 0 TOTAL SCORE: 2597 Bonus ------- None Cogmind --------- Core Integrity 0/400 Matter 300/300 Energy 100/100 System Corruption 0% Temperature Cool (6) Movement Core (50) Location -9/Storage Parts ------- > --- POWER (1) -------- (None) > --- PROPULSION (4) --- (None) > --- UTILITY (2) ------ (None) > --- WEAPON (2) ------- (None) > --- INVENTORY (5) ---- Cooled Ion Engine Hover Unit Backup Propulsion I Propulsion Shielding Light Armor Plating Peak State ------------ > --- POWER ------------ Improved Ion Engine > --- PROPULSION ------- Aluminum Leg Aluminum Leg Improved Aluminum Leg Improved Aluminum Leg > --- UTILITY ---------- Small Storage Unit Visual Processing Unit > --- WEAPON ----------- Heavy Assault Rifle Improved Assault Rifle > --- INVENTORY -------- Cooled Ion Engine Cooled Ion Engine Flight Unit Flight Unit Heat Sink Propulsion Shielding Light Armor Plating Light Assault Rifle [Rating: 17] Favorites ----------- Power Cooled Ion Engine Engine Cooled Ion Engine Propulsion Aluminum Leg Leg Aluminum Leg Hover Unit Hover Unit Flight Unit Flight Unit Utility Visual Processing Unit Device ECM Suite Storage Small Storage Unit Processor Visual Processing Unit Weapon EM Pulse Gun Energy Gun EM Pulse Gun Ballistic Gun Light Assault Rifle Build | -11 -10 -9 -9 ------- Run | Yrd Mat Mat Sto Slots Evolved 2 | . . 2 . Power . | . . . . Propulsion 2 | . . 2 . Utility . | . . . . Weapon . | . . . . Parts Attached 42 | 5 8 22 7 Power 7 | . 3 4 . Engine 7 | . 3 4 . Core . | . . . . Reactor . | . . . . Propulsion 19 | 2 . 14 3 Treads . | . . . . Leg 9 | 2 . 7 . Wheel . | . . . . Hover 3 | . . 3 . Flight 7 | . . 4 3 Utility 3 | 1 1 1 . Device 1 | . . 1 . Storage 1 | 1 . . . Processor 1 | . 1 . . Hackware . | . . . . Protection . | . . . . Artifact . | . . . . Weapon 13 | 2 4 3 4 Energy Gun 5 | 2 . . 3 Energy Cannon . | . . . . Ballistic Gun 8 | . 4 3 1 Ballistic Cannon . | . . . . Launcher . | . . . . Special Weapon . | . . . . Impact Weapon . | . . . . Slashing Weapon . | . . . . Piercing Weapon . | . . . . Special Melee Weapon . | . . . . Unidentified Prototypes 3 | . . 2 1 Parts Lost 11 | . . 2 9 Power . | . . . . Propulsion 9 | . . 2 7 Utility . | . . . . Weapon 2 | . . . 2 Highest Loss Streak 4 | . . 1 4 To Critical Strikes . | . . . . Average Backups 6 | 4 7 7 4 Power 1 | 1 2 1 1 Propulsion 1 | 1 . 1 1 Utility 2 | . 1 3 2 Weapon 1 | 1 3 1 . Tool/Special . | . . . . Unused Backups 15 | . 5 4 6 Power 3 | . . 2 1 Propulsion 4 | . 2 . 2 Utility 4 | . . 1 3 Weapon 4 | . 3 1 . Tool/Special . | . . . . Average Slot Usage (%) 92 | . 99 91 82 Engine 12 | . 14 11 10 Leg 21 | . 28 24 . Hover 1 | . . 3 . Flight 8 | . . 7 30 Device 2 | . . 1 10 Storage 9 | . 14 9 . Processor 11 | . 13 11 10 Energy Gun 10 | . 23 . 8 Ballistic Gun 13 | . 4 22 10 Peak Build Rating 17 | 5 9 17 16 Average Rating 11 | 3 8 13 12 On Entrance 6 | . 5 8 14 Avg Prop Armor Cover (%) . | . . . . Naked Turns 10 | . . . 10 Heaviest Build 19 | 9 14 19 16 Greatest Support 46 | 20 20 46 16 Greatest Overweight (x) 5 | . . 5 4 Average Overweight (x) . | . . . . Largest Inventory Capacity 8 | 8 8 8 5 Average Capacity 7 | 7 8 7 5 Most Carried 8 | 7 8 8 5 Average Carried 6 | 4 7 7 4 Final Capacity 8 | 8 8 5 5 Final Carried 8 | 6 8 5 5 Class Distribution -------------------- 83% | Mutant 12% | Sprinter 4% | Scavenger-Mutant Dominant Class ---------------- Mutant | -10/Materials Mutant | -9/Materials Mutant | -9/Storage Resources | -11 -10 -9 -9 ----------- Run | Yrd Mat Mat Sto Matter Collected 1034 | 250 104 542 138 Remotely . | . . . . Salvage Created 1964 | 83 341 929 611 Parts 117 | 1 20 51 45 Haulers Intercepted 5 | . 1 3 1 Recyclers Shooed 2 | . . 2 . Parts Field Recycled . | . . . . Retrieved Matter . | . . . . Parts Self-Destructed . | . . . . Prevented . | . . . . Parts Restored . | . . . . Kills | -11 -10 -9 -9 ------- Run | Yrd Mat Mat Sto Combat Hostiles Destroyed 28 | . 7 11 10 Guns 24 | . 4 11 9 AOE 3 | . 2 . 1 Classes Destroyed 9 | 1 2 4 2 Worker 1 | . . . 1 Builder 1 | . . 1 . Hauler 5 | . 1 3 1 Recycler 5 | 1 . 3 1 Watcher 3 | . . 2 1 Swarmer 2 | . . . 2 Grunt 17 | . 7 6 4 Duelist 1 | . . 1 . Sentry 8 | . . 4 4 Best Kill Streak 5 | 1 3 5 5 Combat Bots Only 5 | . 3 3 5 Max Kills in Single Turn 2 | 1 2 1 1 Gunslinging . | . . . . Exploded 2 | . 2 . 1 Melee . | . . . . Uniques/NPCs Destroyed . | . . . . Combat | -11 -10 -9 -9 -------- Run | Yrd Mat Mat Sto Hostile Shots Fired 230 | . 36 78 116 Missed 90 | . 15 26 49 Hits 140 | . 21 52 67 Projectile 140 | . 21 52 67 Critical Strikes 2 | . . 2 . Damage Taken 1719 | . 247 680 792 Core 481 | . 73 146 262 Absorbed by Shields . | . . . . Regen/Repaired (Parts) 19 | . . . 19 Core Remaining (%) 85 | 100 70 . . Volleys Fired 125 | 2 23 67 33 Largest 2 | 2 2 2 2 Hottest 90 | 80 80 46 90 Shots Fired 246 | 4 46 134 62 Gun 246 | 4 46 134 62 Cannon . | . . . . Launcher . | . . . . Special . | . . . . Kinetic 189 | . 24 134 31 Thermal 5 | . . . 5 Explosive . | . . . . Electromagnetic 52 | 4 22 . 26 Robot Hit Streak 11 | 3 9 6 11 Robot Miss Streak 5 | . 2 4 5 Penetration Max . | . . . . Secondary Targets 1 | . . . 1 Max Gunslinging Chain 1 | . . . 1 Shots Hit Robots 162 | 3 33 82 44 Core Hits 73 | 2 15 32 24 Critical Kills . | . . . . Critical Parts Destroyed . | . . . . Critical Strikes 1 | . . . 1 Burn 1 | . . . 1 Melee Attacks . | . . . . Impact . | . . . . Slashing . | . . . . Piercing . | . . . . Sneak Attacks . | . . . . Combat Hostiles . | . . . . Follow-up Attacks . | . . . . Damage Inflicted 2351 | 41 454 1164 692 Guns 2213 | 41 354 1164 654 Cannons . | . . . . Explosions 138 | . 100 . 38 Melee . | . . . . Ramming . | . . . . Kinetic 1594 | . 153 1164 277 Thermal 197 | . 100 . 97 Explosive . | . . . . Electromagnetic 560 | 41 201 . 318 Impact . | . . . . Slashing . | . . . . Piercing . | . . . . Highest Corruption . | . . . . Average Corruption . | . . . . Corruption Purged . | . . . . Corruption Blocked . | . . . . Overload Shots . | . . . . Overflow Damage . | . . . . Projectiles . | . . . . Explosions . | . . . . Melee . | . . . . Knockbacks . | . . . . Impact . | . . . . Kinetic . | . . . . Secondary . | . . . . Self-Inflicted Damage . | . . . . Shots . | . . . . Rammed . | . . . . Targets Rammed . | . . . . Kicked . | . . . . Crushed . | . . . . Highest Temperature 235 | 6 117 19 235 Average Temperature 48 | 3 33 4 77 Received Heat Transfer 753 | . 138 294 321 Siege Activations . | . . . . Martial Activations . | . . . . Shielding Activations . | . . . . Robots Disrupted . | . . . . Combat Hostiles . | . . . . Robots Corrupted 1 | . 1 . . Combat Hostiles 1 | . 1 . . Parts Fried 2 | . 1 . 1 Impact Corruptions . | . . . . Robots Melted . | . . . . Combat Hostiles . | . . . . Parts Melted 1 | . . . 1 Heat Transferred 372 | . 100 . 272 Parts Sabotaged . | . . . . Parts Stolen . | . . . . Parts Stripped . | . . . . Power Chain Reactions 2 | . 1 . 1 Alert | -11 -10 -9 -9 ------- Run | Yrd Mat Mat Sto Maximum Alert Level 1 | . . . 1 Low Security (%) 95 | 100 100 100 73 Level 1 4 | . . . 26 Level 2 . | . . . . Level 3 . | . . . . Level 4 . | . . . . Level 5 . | . . . . High Security . | . . . . Max Security . | . . . . Peak Influence 220 | 5 127 122 220 Initial 43 | . 3 42 43 Average 62 | . 38 55 144 Influence Increases 1104 | 5 308 457 334 Destroy 0b10 Robot/C 560 | . 140 220 200 Destroy 0b10 Robot/NC 75 | 5 5 45 20 Destroy Leader 166 | . 32 70 64 Successful Hack 43 | . 9 31 3 Disable Machine 45 | . 15 . 30 Destroy Structure 5 | . 2 1 2 Partial Spotted 15 | . . 15 . Lose Combat Pursuer 195 | . 105 75 15 Influence Decreases 967 | . 210 456 301 Entered New Map 124 | . 2 61 61 Time Decay 618 | . 168 300 150 Lost Part 100 | . . 10 90 Purge Threat 125 | . 40 85 . Squads Dispatched 6 | . 3 1 2 Investigation 5 | . 3 1 1 Extermination . | . . . . Reinforcement 1 | . . . 1 Assault . | . . . . Garrison . | . . . . Intercept . | . . . . Searches Triggered . | . . . . Construction Impeded . | . . . . Haulers Reinforced . | . . . . Active Scanning Responses . | . . . . Cargo Convoy Interrupts . | . . . . Stealth | -11 -10 -9 -9 --------- Run | Yrd Mat Mat Sto Distress Signals 4 | . 1 2 1 Communications Jammed . | . . . . Distress Signals . | . . . . Times Spotted 63 | . 14 30 19 Peak Tracking Total 7 | . 3 4 7 Tactical Retreats 10 | . 3 5 2 ECM-based Alert Blocks 4 | . . 3 1 Traps | -11 -10 -9 -9 ------- Run | Yrd Mat Mat Sto Traps Triggered 2 | . . 2 . Indirectly . | . . . . Trap Hack Attempts . | . . . . Triggered . | . . . . Disarmed . | . . . . Reprogrammed . | . . . . Reused . | . . . . Traps Extracted . | . . . . Installed . | . . . . Triggered . | . . . . Machines | -11 -10 -9 -9 ---------- Run | Yrd Mat Mat Sto Machines Disabled 3 | . 1 . 2 Max in Single Turn 2 | . 1 . 2 Machines Repaired . | . . . . Machines Dismantled . | . . . . Machines Sabotaged . | . . . . Overloaded Fab Kills . | . . . . Hacking | -11 -10 -9 -9 --------- Run | Yrd Mat Mat Sto Machines Accessed 16 | . 7 8 1 Terminals 10 | . 4 6 . Fabricators . | . . . . Repair Stations 2 | . 1 . 1 Recycling Units 4 | . 2 2 . Scanalyzers . | . . . . Garrison Access . | . . . . Total Hacks 53 | . 20 29 4 Successful 28 | . 15 11 2 Failed 25 | . 5 18 2 Catastrophic 4 | . . 4 . Database Lockouts . | . . . . Manual . | . . . . Terminals 32 | . 12 20 . Fabricators . | . . . . Repair Stations 6 | . 2 . 4 Recycling Units 15 | . 6 9 . Scanalyzers . | . . . . Garrison Access . | . . . . Terminal Hacks 18 | . 10 8 . Prototype ID Bank 2 | . 1 1 . Level Access Points 1 | . . 1 . Emergency Access Points 3 | . 2 1 . Recycling Unit Index 1 | . . 1 . Alert Level 2 | . 2 . . Unreport Threat 3 | . 2 1 . Dispatch Records 2 | . 1 1 . Maintenance Status 1 | . 1 . . Security Status 1 | . . 1 . Surveillance Status 1 | . 1 . . Zone Layout 1 | . . 1 . Fabricator Hacks . | . . . . Repair Station Hacks 2 | . . . 2 Scan Component 1 | . . . 1 Repair 1 | . . . 1 Recycling Unit Hacks 8 | . 5 3 . Process 1 | . 1 . . Report Inventory 4 | . 2 2 . Retrieve Matter 1 | . 1 . . Retrieve Components 2 | . 1 1 . Scanalyzer . | . . . . Garrison Access Hacks . | . . . . Unauthorized Hacks . | . . . . Terminals . | . . . . Fabricators . | . . . . Repair Stations . | . . . . Recycling Units . | . . . . Scanalyzers . | . . . . Garrison Access . | . . . . Data Cores Recovered . | . . . . Used . | . . . . Hacking Detections 15 | . 6 8 1 Full Trace Events 3 | . 1 1 1 Feedback Events . | . . . . Feedback Blocked . | . . . . Robot Schematics Acquired . | . . . . Robots Built . | . . . . Authchips . | . . . . Time . | . . . . Total Robot Build Rating . | . . . . Part Schematics Acquired . | . . . . Parts Built . | . . . . Authchips . | . . . . Time . | . . . . Total Part Build Rating . | . . . . Part Studies Acquired . | . . . . Parts Repaired 1 | . . . 1 Time 26 | . . . 26 Parts Recycled . | . . . . Recycled Matter 6 | . 6 . . Retrieved Matter 6 | . 6 . . Retrieved Components 3 | . 1 2 . Parts Scanalyzed . | . . . . Part Schematics Acquired . | . . . . Parts Damaged . | . . . . Bothacking | -11 -10 -9 -9 ------------ Run | Yrd Mat Mat Sto Used RIF Installer . | . . . . Robots Hacked . | . . . . Non-combat . | . . . . Combat . | . . . . Robot Hacks Applied . | . . . . Relay Couplers Released . | . . . . Fabnet Peak Effective % . | . . . . Robots Rewired . | . . . . Allies Hacked . | . . . . Hacks Repelled . | . . . . Allies | -11 -10 -9 -9 -------- Run | Yrd Mat Mat Sto Total Allies . | . . . . Largest Group . | . . . . Highest-Rated Group . | . . . . Highest-Rated Ally . | . . . . Total Orders . | . . . . Ally Attacks . | . . . . Total Damage . | . . . . Kills . | . . . . Allies Corrupted . | . . . . Allies Melted . | . . . . Intel | -11 -10 -9 -9 ------- Run | Yrd Mat Mat Sto Active Infowar (turns) 1645 | . 607 732 306 Optics 1645 | . 607 732 306 ECM 417 | . . 111 306 Robot Analysis Total . | . . . . Derelict Logs Recovered . | . . . . Drone Launches . | . . . . Drone Recoveries . | . . . . Exploration | -11 -10 -9 -9 ------------- Run | Yrd Mat Mat Sto Turns Passed 1757 | 76 633 732 316 Spaces Moved 1335 | 54 452 586 243 Core 32 | 13 . 2 17 Treads . | . . . . Legs 775 | 41 452 282 . Wheels . | . . . . Hover 40 | . . 40 . Flight 488 | . . 262 226 Fastest Speed 31 | 50 120 31 31 Average Speed 94 | 103 120 82 72 Slowest Speed 360 | 120 120 360 280 Overloaded Moves . | . . . . Propulsion Burnouts . | . . . . Robots Hopped 6 | . . 5 1 Potential Cave-ins . | . . . . Cave-ins Triggered . | . . . . Exploration Rate (%) 31 | 2 59 43 20 Regions Visited 3 Branch Regions 1 Pre-discovered Areas . | . . . . Known Exits Taken . | . . . . Unknown Exits Taken 3 | 1 1 1 . Scrap Searched . | . . . . Spaces Dug . | . . . . Terrain Destroyed 4 | . 2 . 2 Melee . | . . . . Projectile . | . . . . AOE 4 | . 2 . 2 Terrain Rammed . | . . . . Walls Destroyed . | . . . . Machines Disabled . | . . . . Actions | -11 -10 -9 -9 --------- Run | Yrd Mat Mat Sto Total 1602 | 69 505 705 323 Wait 34 | . 3 3 28 Move 1320 | 53 451 575 241 Hop 6 | . . 5 1 Pick Up 30 | 9 9 7 5 Fast Attach 28 | 2 5 17 4 Attach 12 | 3 2 3 4 Detach . | . . . . Swap 7 | . 1 4 2 Drop 40 | . 11 24 5 Fire 125 | 2 23 67 33 Melee . | . . . . Ram . | . . . . Kick . | . . . . Crush . | . . . . Escape Stasis . | . . . . Rewire . | . . . . Trap . | . . . . Miscellaneous . | . . . . Route ------- -11/Scrapyard -10/Materials (discovered 3 exits: *Mat x2 / [*Min]) -9/Materials (discovered 4 exits: Mat x3 / *Sto) -9/Storage History --------- Turn | Location | Event 13 | -11/Scrapyard | Discovered new exit (range 16) 77 | -11/Scrapyard | Entered Materials 78 | -10/Materials | Met a group of wandering Federalists 324 | -10/Materials | Build established: Mutant 341 | -10/Materials | Discovered new exit (range 18) 453 | -10/Materials | Discovered new exit (range 8) 594 | -10/Materials | Discovered new exit (range 13) 710 | -10/Materials | Entered another Materials area 710 | -9/Materials | Evolved 2 slots: Propulsion x2 779 | -9/Materials | Identified exit to Materials 946 | -9/Materials | Discovered new exit (range 14) 1442 | -9/Materials | Entered Storage 1470 | -9/Storage | Core integrity fell below 50% 1586 | -9/Storage | Repaired Flight Unit? 1623 | -9/Storage | Lost 4 parts (3n1w) 1707 | -9/Storage | Core integrity fell below 20% 1733 | -9/Storage | Lost 4 parts (3n1w) 1748 | -9/Storage | Released all parts (4) 1758 | -9/Storage | Destroyed by G-34 Mercenary with Small Laser Last Messages --------------- R-06 Scavenger collects Heat Sink. W-16 Scout destroyed. Acquired 9 matter. R-06 Scavenger destroyed. Acquired 6 matter. Acquired Hover Unit. Acquired Backup Propulsion I. K-01 Serf collects debris. Flight Unit destroyed. K-01 Serf collects debris. Flight Unit destroyed. K-01 Serf collects debris. Imp. EM Shotgun destroyed. Acquired 3 matter. K-01 Serf collects debris. R-06 Scavenger collects Heat Sink. Released Cld. Ion Engine. Released ECM Suite. Released Visual Processing Unit. Released Hvy. Assault Rifle. Map ----- +----------------------------------------------------+ | ?????????????????????????????????????????????????? | | ?????????????????????????????????????????????????? | | ?????????????????????????????????????????????????? | | ?????????????????????????????????????????????????? | | ?????????????????????????????????????????????????? | | ?????????????????????????????????????????????????? | | ?????????????????????????????????????????????????? | | ?????????????????????????????????????????????????? | | ?????????????????????????????????????????????????? | | ?????????????????????????????????????????????????? | | ?????????????????????????????????????????????????? | | ?????????????????????????????????????????????????? | | ?????????????????????????????????????????????????? | | ?????????????????????????????????????????????????? | | ?????????????????????????????????????????????????? | | ?????????????????????????????????????????????????? | | ?????????????????????????????????????????????????? | | ?????????????????????????????????????????????????? | | ????????????????????#????????????????????????????? | | ????????????????????# ??###??????????????????????? | | ????????????????????# ?# ??????????????????????? | | ????????????????????? ?# ??????????????????????? | | ?????????????????????? # ??????????????????????? | | ?#########????????????? # "??????????????????????? | | ?# #??????????????+["??????????????????????? | | ?# ?##########???#@"??????????????????????? | | ?# #?# #???#g"""""" #??????????????? | | ?# #?# #???# #??????????????? | | ?# #?# """" #???###/#######??????????????? | | ?#""" #?# "??" #?????# #????????????????????? | | ?#""" #?# "??" #?????# #????????????????????? | | ?#""" #?# "??" #?????# #????????????????????? | | ?#""" #?# "??" ####### ##### #####??????????? | | ?#""" #?# """" + + / ??????? | | ## #?# # # #????????? | | #####+##+######+##+## #??????????????????? | | *= #??????????????????? | | [ % % + """??????????????? | | *== [! % # """??????????????? | | ###############+##+######## #? ?????????????? | | #?????????# %! % #?????# #??? ????????????? | | ?????????## [ % #?????# #?????#????????????? | | ?????????#*%= [ %#?????? #??????????????????? | | ?????????##[[= *% =#?????? #??????????????????? | | ??????????#%"""""! =#?????? +??????????????????? | | ??????????# ""= !=[#?????? #??????????????????? | | ??????????# ""=[*!=!#?????? #??????????????????? | | ??????????#[% !!%!%=#?????? #??????????????????? | | ??????????###" =#####?????? #??????????????????? | | ????????????#"R!# #? ??????????????????? | +----------------------------------------------------+ Best States ------------- Heat Dissipation 28 Energy Generation 14 Energy Capacity 280 Matter Stores 300 Matter Capacity 300 Sight Range 18 Terrain Scan Density 10 ECM Strength 1 Evasion (%) 63 Item Schematics ----------------- None Robot Schematics ------------------ None Fabricated ------------ Nothing Repaired ---------- Flight Unit | 5% | -9/Storage Studied --------- None Alien Tech Used ----------------- None Achievements -------------- Party Time Spot Them First Challenges ------------ None Game ------ Seed ArmoredZioniteReconstructor Manual? 0 Play Time 00:24:14 Cumulative 8.2 hours Start 2026.03.17 @ 17:47:37 End 2026.03.17 @ 18:10:31 Sessions 1 Manual Loads 0 Difficulty Rogue Special Mode None Game No. 14 Rogue 14 Adventurer 0 Explorer 0 Win Type - Total 0 Types 0/0/0/0/0/0/0/0/0/0 Lore% 8 Gallery% 11 Achievement% 12 Wizard Run 0 Options --------- Layout 1 ASCII 0 Keyboard 0 Movement Mouse Keybinds 0 Fullscreen 1 Font 32/SmallcapsGlow Map View 50x35 Zoom Use 0% Tactical HUD 0 Map Filters NONE Filters NONE Steam 0 RUN: 16596a4e-5ece-4172-ba12-eb2a33ca68e5